{"text_format":"1","workbook":"xlsx","n_sheets":1,"sheets":["Coordinates"],"not_rendered":{"charts":0,"images":1,"macros":1,"external_links":0,"defined_names":2,"comments":0,"pivot_tables":0},"unopened":[],"bounds":{"document_bytes":16777216,"sheet_cells":100000,"rows_first":2000,"rows_last":500,"rows_between":2000,"halvings":0,"cell_chars":16384,"cell_head_chars":4096},"cells_cut":0,"cells_raw":0,"read":"whole","date_system":"1900"}

{"sheet":"Coordinates","index":0,"n_rows":30,"n_cols":59,"rows_kept":30,"cut":false,"hidden":false,"merged":[[29,3,29,5],[29,6,29,7],[25,3,25,5],[26,3,26,5],[27,3,27,5],[28,3,28,5],[25,6,25,7],[27,6,27,7],[23,3,23,5],[24,3,24,5],[23,6,23,7],[14,3,14,5],[15,3,15,5],[1,1,5,42],[9,6,9,7],[11,6,11,7],[13,6,13,7],[15,6,15,7],[9,3,9,5],[10,3,10,5],[11,3,11,5],[12,3,12,5],[13,3,13,5]]}
[]
[null,"Level 2 - Coordinates                                                                                                                                                                                                                                                                                                                                          Created by Mr.Lafferty@mathsrevision.com   "]
[]
[]
[]
[]
[]
[null,{"$f":"\"Q1.  Write down the coordinates when reflected in x-axis.\"","v":"Q1.  Write down the coordinates when reflected in x-axis."},null,null,null,null,null,null,null,null,null,null,null,null,null,null,null,null,null,null,null,null,null,null,null,null,null,null,null,null,null,null,null,null,null,null,null,null,null,null,null,null,null,null,null,null,null,{"$f":"ROUND(RAND()*(9-(-9))+(-9),0)","v":-2},{"$f":"ROUND(RAND()*(9-(-9))+(-9),0)","v":-9},null,null,{"$f":"CONCATENATE(\"(\",AV8,\",\",AW8,\")\")","v":"(-2,-9)"},null,null,{"$f":"AV8","v":-2},{"$f":"-AW8","v":9},null,{"$f":"TEXT(BC8,0)","v":"-2"},{"$f":"TEXT(BD8,0)","v":"9"}]
[null,null,null,null,null,null,null,null,null,null,null,null,null,null,null,null,null,null,null,null,null,null,null,null,null,null,null,null,null,null,null,null,null,null,null,null,null,null,null,null,null,null,null,null,null,null,null,{"$f":"ROUND(RAND()*(9-(-9))+(-9),0)","v":4},2,null,null,{"$f":"CONCATENATE(\"(\",AV9,\",\",AW9,\")\")","v":"(4,2)"},null,null,{"$f":"AV9","v":4},{"$f":"-AW9","v":-2},null,{"$f":"TEXT(BC9,0)","v":"4"},{"$f":"TEXT(BD9,0)","v":"-2"}]
[null,null,null,{"$f":"AZ8","v":"(-2,-9)"},null,null,"→",null,null,null,"(",null,",",null,")",null,null,null,null,null,null,null,null,null,null,null,null,null,null,null,null,null,null,null,null,null,null,null,null,null,null,null,null,null,null,null,null,1,0,null,null,"(1,0)",null,null,1,0,null,"1","0"]
[null,null,null,null,null,null,null,null,null,null,null,null,null,null,null,null,null,null,null,null,null,null,null,null,null,null,null,null,null,null,null,null,null,null,null,null,null,null,null,null,null,null,null,null,null,null,null,3,8,null,null,"(3,8)",null,null,3,-8,null,"3","-8"]
[null,null,null,{"$f":"AZ9","v":"(4,2)"},null,null,"→",null,null,null,"(",null,",",null,")"]
[]
[null,null,null,{"$f":"AZ10","v":"(1,0)"},null,null,"→",null,null,null,"(",null,",",null,")"]
[]
[null,null,null,{"$f":"AZ11","v":"(3,8)"},null,null,"→",null,null,null,"(",null,",",null,")"]
[]
[]
[]
[]
[]
[null,{"$f":"\"Q2.  Write down the coordinates when reflected in y-axis.\"","v":"Q2.  Write down the coordinates when reflected in y-axis."},null,null,null,null,null,null,null,null,null,null,null,null,null,null,null,null,null,null,null,null,null,null,null,null,null,null,null,null,null,null,null,null,null,null,null,null,null,null,null,null,null,null,null,null,null,{"$f":"ROUND(RAND()*(9-(-9))+(-9),0)","v":-1},{"$f":"ROUND(RAND()*(9-(-9))+(-9),0)","v":5},null,null,{"$f":"CONCATENATE(\"(\",AV22,\",\",AW22,\")\")","v":"(-1,5)"},null,null,{"$f":"-AV22","v":1},{"$f":"AW22","v":5},null,{"$f":"TEXT(BC22,0)","v":"1"},{"$f":"TEXT(BD22,0)","v":"5"}]
[null,null,null,null,null,null,null,null,null,null,null,null,null,null,null,null,null,null,null,null,null,null,null,null,null,null,null,null,null,null,null,null,null,null,null,null,null,null,null,null,null,null,null,null,null,null,null,{"$f":"ROUND(RAND()*(9-(-9))+(-9),0)","v":0},6,null,null,{"$f":"CONCATENATE(\"(\",AV23,\",\",AW23,\")\")","v":"(0,6)"},null,null,{"$f":"-AV23","v":0},{"$f":"AW23","v":6},null,{"$f":"TEXT(BC23,0)","v":"0"},{"$f":"TEXT(BD23,0)","v":"6"}]
[null,null,null,{"$f":"AZ22","v":"(-1,5)"},null,null,"→",null,null,null,"(",null,",",null,")",null,null,null,null,null,null,null,null,null,null,null,null,null,null,null,null,null,null,null,null,null,null,null,null,null,null,null,null,null,null,null,null,0,5,null,null,"(0,5)",null,null,0,5,null,"0","5"]
[null,null,null,null,null,null,null,null,null,null,null,null,null,null,null,null,null,null,null,null,null,null,null,null,null,null,null,null,null,null,null,null,null,null,null,null,null,null,null,null,null,null,null,null,null,null,null,-4,8,null,null,"(-4,8)",null,null,4,8,null,"4","8"]
[null,null,null,{"$f":"AZ23","v":"(0,6)"},null,null,"→",null,null,null,"(",null,",",null,")"]
[]
[null,null,null,{"$f":"AZ24","v":"(0,5)"},null,null,"→",null,null,null,"(",null,",",null,")"]
[]
[null,null,null,{"$f":"AZ25","v":"(-4,8)"},null,null,"→",null,null,null,"(",null,",",null,")"]